fUST/lending_fUST_20250724
["ID","MTS","AMOUNT","RATE_DAILY","PERIOD"]
[374573882,1753360261713,-460.0,0.00020273,2]
[374573883,1753360261723,-604.88,0.00020273,2]
[374573884,1753360261732,-460.0,0.00020273,2]
[374573885,1753360261742,-1911.8,0.00020273,2]
[374573886,1753360261752,-460.0,0.00020273,2]
[374573887,1753360261762,-460.0,0.00020273,2]
[374573888,1753360261772,-460.0,0.00020273,2]
[374573889,1753360261782,-744.46,0.00020273,2]
[374573890,1753360261792,-460.0,0.00020273,2]
[374573891,1753360261803,-460.0,0.00020273,2]
[374573892,1753360261813,-460.0,0.00020273,2]
[374573893,1753360261823,-670.07,0.00020273,2]
[374573894,1753360261833,-460.0,0.00020273,2]
[374573895,1753360261843,-460.0,0.00020273,2]
[374573896,1753360261853,-234.11705172,0.00020273,2]
[374573897,1753360261863,-460.0,0.00020273,2]
[374573898,1753360261874,-1002.82,0.00020273,2]
[374573899,1753360261885,-531.78,0.00020273,2]
[374573900,1753360261895,-498.33,0.00020273,2]
[374573901,1753360261909,-460.0,0.00020273,2]
[374573902,1753360261919,-460.0,0.00020273,2]
[374573903,1753360261930,-460.0,0.00020273,2]
[374573904,1753360261940,-460.0,0.00020273,2]
[374573905,1753360261949,-460.0,0.00020273,2]
[374573906,1753360261959,-1757.41,0.00020273,2]
[374573907,1753360261969,-460.0,0.00020273,2]
[374573908,1753360261980,-754.62,0.00020273,2]
[374573909,1753360261989,-529.83,0.00020273,2]
[374573910,1753360261998,-460.0,0.00020273,2]
[374573911,1753360262007,-460.0,0.00020273,2]
[374573912,1753360262017,-3594.1,0.00020273,2]
[374573913,1753360262026,-460.0,0.00020273,2]
[374573914,1753360262036,-463.50139015,0.00020273,2]
[374573915,1753360262045,-461.86415264,0.00020273,2]
[374573916,1753360262055,-460.0,0.00020273,2]
[374573917,1753360262064,-460.0,0.00020273,2]
[374573918,1753360262074,-460.0,0.00020273,2]
[374573919,1753360262084,-675.78,0.00020273,2]
[374573920,1753360262095,-225.4772536,0.00020273,2]
[374573921,1753360262104,-232.42166559,0.00020273,2]
[374573922,1753360262114,-500.0,0.00020274,2]
[374573923,1753360262124,-151.0,0.000203,3]
[374573924,1753360262142,-3779.50728391,0.00020311,2]
[374573925,1753360262153,-501.57043918,0.00020321,2]
[374573926,1753360262163,-500.0,0.00020321,2]
[374573927,1753360262174,-649.91416204,0.00020321,2]
[374573928,1753360262186,-2212.1093408,0.00020417,3]
[374573929,1753360262195,-151.0,0.000205,3]
[374573930,1753360262204,-516.15000208,0.00020521,2]
[374573931,1753360262214,-1000.0,0.00020521,2]
[374573932,1753360262224,-460.0,0.00020547,2]
[374573933,1753360262232,-151.0,0.00020547,2]
[374573934,1753360262240,-460.0,0.00020547,2]
[374573935,1753360262249,-151.0,0.00020547,2]
[374573936,1753360262259,-460.0,0.00020547,2]
[374573937,1753360262269,-460.0,0.00020547,2]
[374573938,1753360262279,-501.02,0.00020547,2]
[374573939,1753360262288,-460.0,0.00020547,2]
[374573940,1753360262298,-460.0,0.00020547,2]
[374573941,1753360262307,-271.963078,0.00020547,2]
[374573942,1753360262321,-460.0,0.00020547,2]
[374573943,1753360262330,-460.0,0.00020547,2]
[374573944,1753360262340,-151.0,0.00020547,2]
[374573945,1753360262349,-171.750868,0.00020547,2]
[374573946,1753360262359,-460.0,0.00020547,2]
[374573947,1753360262368,-460.0,0.00020547,2]
[374573948,1753360262378,-460.0,0.00020547,2]
[374573949,1753360262387,-464.9056258,0.00020547,2]
[374573950,1753360262396,-460.0,0.00020547,2]
[374573951,1753360262410,-460.0,0.00020547,2]
[374573952,1753360262419,-460.0,0.00020547,2]
[374573953,1753360262430,-460.0,0.00020547,2]
[374573954,1753360262440,-460.0,0.00020547,2]
[374573955,1753360262449,-460.0,0.00020547,2]
[374573956,1753360262459,-460.0,0.00020547,2]
[374573957,1753360262469,-460.0,0.00020547,2]
[374573958,1753360262479,-517.98984694,0.00020547,2]
[374573959,1753360262617,-464.59231578,0.00020547,2]
[374573960,1753360262627,-517.92026842,0.00020547,2]
[374573961,1753360262637,-460.0,0.00020547,2]
[374573962,1753360262646,-460.0,0.00020547,2]
[374573963,1753360262661,-460.0,0.00020547,2]
[374573964,1753360262673,-460.0,0.00020547,2]
[374573965,1753360262683,-460.0,0.00020547,2]
[374573966,1753360262694,-460.0,0.00020547,2]
[374573967,1753360262703,-460.0,0.00020547,2]
[374573968,1753360262712,-460.0,0.00020547,2]
[374573969,1753360262723,-460.0,0.00020547,2]
[374573970,1753360262733,-460.0,0.00020547,2]
[374573971,1753360262742,-460.0,0.00020547,2]
[374573972,1753360262752,-460.0,0.00020547,2]
[374573973,1753360262762,-509.69,0.00020547,2]
[374573974,1753360262772,-460.0,0.00020547,2]
[374573975,1753360262782,-460.0,0.00020547,2]
[374573976,1753360262791,-460.0,0.00020547,2]
[374573977,1753360262801,-460.0,0.00020547,2]
[374573978,1753360262812,-460.0,0.00020547,2]
[374573979,1753360262821,-408.50298325,0.00020547,2]
[374573980,1753360262831,-460.0,0.00020547,2]
[374573981,1753360262841,-460.0,0.00020547,2]
[374573982,1753360262851,-460.0,0.00020547,2]
[374573983,1753360262861,-453.41264843,0.00020547,2]
[374573984,1753360262870,-460.0,0.00020547,2]
[374573985,1753360262880,-625.4,0.00020547,2]
[374573986,1753360262890,-460.0,0.00020547,2]
[374573987,1753360262902,-460.0,0.00020547,2]
[374573988,1753360262911,-460.0,0.00020547,2]
[374573989,1753360262922,-460.0,0.00020547,2]
[374573990,1753360262932,-460.0,0.00020547,2]
[374573991,1753360262941,-460.0,0.00020547,2]
[374573992,1753360262951,-460.0,0.00020547,2]
[374573993,1753360262960,-460.0,0.00020547,2]
[374573994,1753360262970,-460.0,0.00020547,2]
[374573995,1753360262980,-461.86,0.00020547,2]
[374573996,1753360262989,-460.0,0.00020547,2]
[374573997,1753360262999,-460.0,0.00020547,2]
[374573998,1753360263008,-463.34164963,0.00020547,2]
[374573999,1753360263018,-460.0,0.00020547,2]
[374574000,1753360263028,-267.46097725,0.00020547,2]
[374574001,1753360263037,-460.0,0.00020547,2]
[374574002,1753360263047,-460.0,0.00020547,2]
[374574003,1753360263057,-460.0,0.00020547,2]
[374574004,1753360263067,-460.0,0.00020547,2]
[374574005,1753360263077,-460.63738917,0.00020547,2]
[374574006,1753360263087,-617.93,0.00020547,2]
[374574007,1753360263097,-460.0,0.00020547,2]
[374574008,1753360263108,-497.53,0.00020547,2]
[374574009,1753360263118,-460.0,0.00020547,2]
[374574010,1753360263130,-460.0,0.00020547,2]
[374574011,1753360263141,-498.33,0.00020547,2]
[374574012,1753360263153,-460.0,0.00020547,2]
[374574013,1753360263164,-460.0,0.00020547,2]
[374574014,1753360263174,-460.0,0.00020547,2]
[374574015,1753360263185,-460.0,0.00020547,2]
[374574016,1753360263196,-1176.12,0.00020547,2]
[374574017,1753360263208,-460.0,0.00020547,2]
[374574018,1753360263219,-468.66,0.00020547,2]
[374574019,1753360263230,-460.0,0.00020547,2]
[374574020,1753360263240,-460.0,0.00020547,2]
[374574021,1753360263249,-460.0,0.00020547,2]
[374574022,1753360263259,-460.0,0.00020547,2]
[374574023,1753360263268,-460.0,0.00020547,2]
[374574024,1753360263279,-460.0,0.00020547,2]
[374574025,1753360263289,-464.31808404,0.00020547,2]
[374574026,1753360263299,-460.0,0.00020547,2]
[374574027,1753360263310,-460.0,0.00020547,2]
[374574028,1753360263319,-485.69,0.00020547,2]
[374574029,1753360263328,-207.7676139,0.00020547,2]
[374574030,1753360263338,-460.0,0.00020547,2]
[374574031,1753360263347,-460.0,0.00020547,2]
[374574032,1753360263356,-460.0,0.00020547,2]
[374574033,1753360263365,-177.98277192,0.00020547,2]
[374574034,1753360263375,-460.0,0.00020547,2]
[374574035,1753360263384,-460.0,0.00020547,2]
[374574036,1753360263393,-460.0,0.00020547,2]
[374574037,1753360263405,-460.0,0.00020547,2]
[374574038,1753360263414,-460.0,0.00020547,2]
[374574039,1753360263423,-460.0,0.00020547,2]
[374574040,1753360263433,-460.0,0.00020547,2]
[374574041,1753360263442,-460.0,0.00020547,2]
[374574042,1753360263451,-460.0,0.00020547,2]
[374574043,1753360263462,-460.0,0.00020547,2]
[374574044,1753360263472,-460.0,0.00020547,2]
[374574045,1753360263483,-460.0,0.00020547,2]
[374574046,1753360263492,-460.0,0.00020547,2]
[374574047,1753360263502,-656.04,0.00020547,2]
[374574048,1753360263512,-787.46,0.00020547,2]
[374574049,1753360263522,-460.0,0.00020547,2]
[374574050,1753360263532,-460.0,0.00020547,2]
[374574051,1753360263542,-460.0,0.00020547,2]
[374574052,1753360263553,-4145.47,0.00020547,2]
[374574053,1753360263563,-460.0,0.00020547,2]
[374574054,1753360263574,-460.0,0.00020547,2]
[374574055,1753360263584,-460.0,0.00020547,2]
[374574056,1753360263594,-151.183589,0.00020547,2]
[374574057,1753360263604,-460.0,0.00020547,2]
[374574058,1753360263614,-460.0,0.00020547,2]
[374574059,1753360263623,-460.0,0.00020547,2]
[374574060,1753360263632,-3246.15,0.00020547,2]
[374574061,1753360263642,-288.51538864,0.00020547,2]
[374574062,1753360263652,-530.2,0.00020547,2]
[374574063,1753360263662,-1199.81,0.00020547,2]
[374574064,1753360263672,-983.86,0.00020547,2]
[374574065,1753360263682,-460.0,0.00020547,2]
[374574066,1753360263692,-214.72,0.00020547,2]
[374574067,1753360263702,-460.0,0.00020547,2]
[374574068,1753360263712,-460.0,0.00020547,2]
[374574069,1753360263723,-1418.88,0.00020547,2]
[374574070,1753360263733,-395.835009,0.00020547,2]
[374574071,1753360263743,-460.0,0.00020547,2]
[374574072,1753360263752,-460.0,0.00020547,2]
[374574073,1753360263762,-395.835009,0.00020547,2]
[374574074,1753360263772,-460.0,0.00020547,2]
[374574075,1753360263781,-460.0,0.00020547,2]
[374574076,1753360263791,-462.39176709,0.00020547,2]
[374574077,1753360263800,-849.03,0.00020547,2]
[374574078,1753360263810,-460.0,0.00020547,2]
[374574079,1753360263820,-541.06639915,0.00020547,2]
[374574080,1753360263830,-151.0,0.00020547,2]
[374574081,1753360263840,-569.28,0.00020547,2]
[374574082,1753360263850,-469.9478738,0.00020547,2]
[374574083,1753360263861,-613.55,0.00020547,2]
[374574084,1753360263871,-1824.94,0.00020547,2]
[374574085,1753360263882,-460.0,0.00020547,2]
[374574086,1753360263891,-576.7164575,0.00020547,2]
[374574087,1753360263901,-627.83,0.00020547,2]
[374574088,1753360263911,-460.0,0.00020547,2]
[374574089,1753360263921,-460.0,0.00020547,2]
[374574090,1753360263931,-460.0,0.00020547,2]
[374574091,1753360263941,-444.81,0.00020547,2]
[374574092,1753360263951,-460.0,0.00020547,2]
[374574093,1753360263961,-460.0,0.00020547,2]
[374574094,1753360263972,-2461.45,0.00020547,2]
[374574095,1753360263982,-460.0,0.00020547,2]
[374574096,1753360263992,-460.0,0.00020547,2]
[374574097,1753360264002,-460.0,0.00020547,2]
[374574098,1753360264012,-468.35645803,0.00020547,2]
[374574099,1753360264022,-460.0,0.00020547,2]
[374574100,1753360264032,-608.45244726,0.00020547,2]
[374574101,1753360264042,-460.0,0.00020547,2]
[374574102,1753360264053,-460.0,0.00020547,2]
[374574103,1753360264063,-597.66,0.00020547,2]
[374574104,1753360264074,-479.16,0.00020547,2]
[374574105,1753360264084,-460.0,0.00020547,2]
[374574106,1753360264094,-2629.06,0.00020547,2]
[374574107,1753360264104,-602.97,0.00020547,2]
[374574108,1753360264115,-460.0,0.00020547,2]
[374574109,1753360264125,-460.0,0.00020547,2]
[374574110,1753360264140,-1353.06,0.00020547,2]
[374574111,1753360264151,-604.51,0.00020547,2]
[374574112,1753360264161,-460.0,0.00020547,2]
[374574113,1753360264173,-460.0,0.00020547,2]
[374574114,1753360264184,-436.83343664,0.00020547,2]
[374574115,1753360264194,-460.0,0.00020547,2]
[374574116,1753360264204,-555.83,0.00020547,2]
[374574117,1753360264215,-460.0,0.00020547,2]
[374574118,1753360264226,-460.0,0.00020547,2]
[374574119,1753360264236,-460.0,0.00020547,2]
[374574120,1753360264246,-2933.32,0.00020547,2]
[374574121,1753360264256,-460.0,0.00020547,2]
[374574122,1753360264266,-616.01,0.00020547,2]
[374574123,1753360264276,-289.27977602,0.00020547,2]
[374574124,1753360264286,-609.01,0.00020547,2]
[374574125,1753360264296,-460.0,0.00020547,2]
[374574126,1753360264305,-460.21,0.00020547,2]
[374574127,1753360264316,-460.0,0.00020547,2]
[374574128,1753360264327,-460.0,0.00020547,2]
[374574129,1753360264337,-151.0,0.00020547,2]
[374574130,1753360264347,-1496.43,0.00020547,2]
[374574131,1753360264358,-1261.1,0.00020547,2]
[374574132,1753360264368,-596.9,0.00020547,2]
[374574133,1753360264378,-460.0,0.00020547,2]
[374574134,1753360264389,-670.55,0.00020547,2]
[374574135,1753360264400,-653.26,0.00020547,2]
[374574136,1753360264416,-460.0,0.00020547,2]
[374574137,1753360264426,-793.122708,0.00020547,2]
[374574138,1753360264436,-5786.17,0.00020547,2]
[374574139,1753360264447,-460.0,0.00020547,2]
[374574140,1753360264457,-151.0,0.00020547,2]
[374574141,1753360264468,-793.122708,0.00020547,2]
[374574142,1753360264479,-604.88,0.00020547,2]
[374574143,1753360264489,-460.0,0.00020547,2]
[374574144,1753360264499,-1911.8,0.00020547,2]
[374574145,1753360264510,-460.0,0.00020547,2]
[374574146,1753360264520,-460.0,0.00020547,2]
[374574147,1753360264530,-460.0,0.00020547,2]
[374574148,1753360264539,-744.46,0.00020547,2]
[374574149,1753360264550,-460.0,0.00020547,2]
[374574150,1753360264560,-460.0,0.00020547,2]
[374574151,1753360264570,-670.07,0.00020547,2]
[374574152,1753360264579,-460.0,0.00020547,2]
[374574153,1753360264588,-460.0,0.00020547,2]
[374574154,1753360264598,-460.0,0.00020547,2]
[374574155,1753360264608,-1002.82,0.00020547,2]
[374574156,1753360264617,-531.78,0.00020547,2]
[374574157,1753360264627,-498.33,0.00020547,2]
[374574158,1753360264636,-460.0,0.00020547,2]
[374574159,1753360264646,-460.0,0.00020547,2]
[374574160,1753360264658,-460.0,0.00020547,2]
[374574161,1753360264765,-460.0,0.00020547,2]
[374574162,1753360264776,-460.0,0.00020547,2]
[374574163,1753360264786,-1757.41,0.00020547,2]
[374574164,1753360264795,-161.76201462,0.00020547,2]
[374574165,1753360264805,-754.62,0.00020547,2]
[374574166,1753360264815,-529.83,0.00020547,2]
[374574167,1753360264824,-460.0,0.00020547,2]
[374574168,1753360264833,-3594.1,0.00020547,2]
[374574169,1753360264842,-460.0,0.00020547,2]
[374574170,1753360264851,-460.0,0.00020547,2]
[374574171,1753360264860,-460.0,0.00020547,2]
[374574172,1753360264869,-460.0,0.00020547,2]
[374574173,1753360264878,-675.78,0.00020547,2]
[374574174,1753360264887,-207.58775708,0.00020548,2]
[374574175,1753360264897,-260.0,0.0002055,2]
[374574176,1753360264908,-1170.95025122,0.00020568,2]
[374574177,1753360264918,-2212.1093408,0.0002059,3]
[374574178,1753360264927,-420.0,0.00020686,2]
[374574179,1753360264936,-151.0,0.000207,4]
[374574180,1753360264945,-476.79463412,0.00020746,3]
[374574181,1753360264955,-2212.1093408,0.00020762,3]
[374574182,1753360264964,-12624.810388,0.00020798,2]
[374574183,1753360264974,-215.88777038,0.00020798,2]
[374574184,1753360264983,-160.0,0.00020798,2]
[374574185,1753360264993,-160.0,0.000208,2]
[374574186,1753360265002,-160.0,0.000208,2]
[374574187,1753360265011,-160.0,0.000208,2]
[374574188,1753360265020,-160.0,0.000208,2]
[374574189,1753360265030,-160.0,0.000208,2]
[374574190,1753360265039,-476.79463412,0.000208,2]
[374574191,1753360265049,-214.7213231,0.000208,2]
[374574192,1753360265058,-840.23756827,0.00020801,2]
[374574193,1753360265067,-231.16387093,0.00020801,2]
[374574194,1753360265077,-526.24749348,0.00020801,2]
[374574195,1753360265087,-289.85271283,0.00020821,2]
[374574196,1753360265097,-383.08557174,0.00020821,2]
[374574197,1753360265106,-460.0,0.00020821,2]
[374574198,1753360265115,-460.0,0.00020821,2]
[374574199,1753360265125,-460.0,0.00020821,2]
[374574200,1753360265137,-410.91736498,0.00020821,2]
[374574201,1753360265147,-460.0,0.00020821,2]
[374574202,1753360265159,-460.0,0.00020821,2]
[374574203,1753360265167,-460.0,0.00020821,2]
[374574204,1753360265178,-151.0,0.00020821,2]
[374574205,1753360265187,-460.0,0.00020821,2]
[374574206,1753360265197,-460.0,0.00020821,2]
[374574207,1753360265209,-605.22214898,0.00020821,2]
[374574208,1753360265219,-460.0,0.00020821,2]
[374574209,1753360265229,-460.0,0.00020821,2]
[374574210,1753360265238,-460.0,0.00020821,2]
[374574211,1753360265248,-460.0,0.00020821,2]
[374574212,1753360265257,-460.0,0.00020821,2]
[374574213,1753360265267,-460.0,0.00020821,2]
[374574214,1753360265277,-460.0,0.00020821,2]
[374574215,1753360265286,-460.0,0.00020821,2]
[374574216,1753360265295,-460.0,0.00020821,2]
[374574217,1753360265304,-460.0,0.00020821,2]
[374574218,1753360265314,-460.0,0.00020821,2]
[374574219,1753360265323,-460.0,0.00020821,2]
[374574220,1753360265333,-509.69,0.00020821,2]
[374574221,1753360265342,-460.0,0.00020821,2]
[374574222,1753360265351,-460.0,0.00020821,2]
[374574223,1753360265360,-460.0,0.00020821,2]
[374574224,1753360265369,-460.0,0.00020821,2]
[374574225,1753360265378,-460.0,0.00020821,2]
[374574226,1753360265387,-460.0,0.00020821,2]
[374574227,1753360265396,-460.0,0.00020821,2]
[374574228,1753360265408,-460.0,0.00020821,2]
[374574229,1753360265418,-460.0,0.00020821,2]
[374574230,1753360265427,-625.4,0.00020821,2]
[374574231,1753360265437,-460.0,0.00020821,2]
[374574232,1753360265446,-460.0,0.00020821,2]
[374574233,1753360265456,-460.0,0.00020821,2]
[374574234,1753360265465,-460.0,0.00020821,2]
[374574235,1753360265475,-460.0,0.00020821,2]
[374574236,1753360265484,-460.0,0.00020821,2]
[374574237,1753360265494,-460.0,0.00020821,2]
[374574238,1753360265504,-460.0,0.00020821,2]
[374574239,1753360265514,-461.86,0.00020821,2]
[374574240,1753360265523,-460.0,0.00020821,2]
[374574241,1753360265533,-460.0,0.00020821,2]
[374574242,1753360265544,-460.0,0.00020821,2]
[374574243,1753360265554,-460.0,0.00020821,2]
[374574244,1753360265564,-469.43030207,0.00020821,2]
[374574245,1753360265574,-460.0,0.00020821,2]
[374574246,1753360265584,-617.93,0.00020821,2]
[374574247,1753360265593,-460.0,0.00020821,2]
[374574248,1753360265603,-497.53,0.00020821,2]
[374574249,1753360265613,-460.0,0.00020821,2]
[374574250,1753360265623,-460.0,0.00020821,2]
[374574251,1753360265632,-498.33,0.00020821,2]
[374574252,1753360265642,-460.0,0.00020821,2]
[374574253,1753360265653,-460.0,0.00020821,2]
[374574254,1753360265665,-1176.12,0.00020821,2]
[374574255,1753360265676,-460.0,0.00020821,2]
[374574256,1753360265686,-468.66,0.00020821,2]
[374574257,1753360265696,-466.02726588,0.00020821,2]
[374574258,1753360265706,-460.0,0.00020821,2]
[374574259,1753360265716,-289.549182,0.00020821,2]
[374574260,1753360265726,-460.0,0.00020821,2]
[374574261,1753360265736,-289.549182,0.00020821,2]
[374574262,1753360265745,-460.0,0.00020821,2]
[374574263,1753360265755,-460.0,0.00020821,2]
[374574264,1753360265765,-460.0,0.00020821,2]
[374574265,1753360265774,-460.0,0.00020821,2]
[374574266,1753360265784,-464.70089885,0.00020821,2]
[374574267,1753360265794,-485.69,0.00020821,2]
[374574268,1753360265803,-468.04502299,0.00020821,2]
[374574269,1753360265813,-311.94360507,0.00020821,2]
[374574270,1753360265823,-460.0,0.00020821,2]
[374574271,1753360265832,-460.0,0.00020821,2]
[374574272,1753360265842,-460.0,0.00020821,2]
[374574273,1753360265852,-460.0,0.00020821,2]
[374574274,1753360265861,-460.0,0.00020821,2]
[374574275,1753360265870,-460.0,0.00020821,2]
[374574276,1753360265880,-460.0,0.00020821,2]
[374574277,1753360265890,-460.0,0.00020821,2]
[374574278,1753360265900,-460.0,0.00020821,2]
[374574279,1753360265912,-460.0,0.00020821,2]
[374574280,1753360265922,-460.0,0.00020821,2]
[374574281,1753360265931,-460.0,0.00020821,2]
[374574282,1753360265941,-656.04,0.00020821,2]
[374574283,1753360265950,-787.46,0.00020821,2]
[374574284,1753360265959,-151.0,0.00020821,2]
[374574285,1753360265968,-460.0,0.00020821,2]
[374574286,1753360265979,-460.0,0.00020821,2]
[374574287,1753360265988,-464.2520777,0.00020821,2]
[374574288,1753360265998,-4145.47,0.00020821,2]
[374574289,1753360266008,-460.0,0.00020821,2]
[374574290,1753360266017,-460.0,0.00020821,2]
[374574291,1753360266027,-460.0,0.00020821,2]
[374574292,1753360266036,-460.0,0.00020821,2]
[374574293,1753360266045,-460.0,0.00020821,2]
[374574294,1753360266054,-460.0,0.00020821,2]
[374574295,1753360266064,-3246.15,0.00020821,2]
[374574296,1753360266074,-1199.81,0.00020821,2]
[374574297,1753360266083,-983.86,0.00020821,2]
[374574298,1753360266093,-463.26166183,0.00020821,2]
[374574299,1753360266103,-460.0,0.00020821,2]
[374574300,1753360266113,-1418.88,0.00020821,2]
[374574301,1753360266122,-460.0,0.00020821,2]
[374574302,1753360266132,-460.0,0.00020821,2]
[374574303,1753360266142,-460.0,0.00020821,2]
[374574304,1753360266151,-460.0,0.00020821,2]
[374574305,1753360266163,-849.03,0.00020821,2]
[374574306,1753360266172,-395.56165622,0.00020821,2]
[374574307,1753360266182,-569.28,0.00020821,2]
[374574308,1753360266192,-613.55,0.00020821,2]
[374574309,1753360266202,-1824.94,0.00020821,2]
[374574310,1753360266217,-460.0,0.00020821,2]
[374574311,1753360266227,-627.83,0.00020821,2]
[374574312,1753360266237,-460.0,0.00020821,2]
[374574313,1753360266247,-390.89522871,0.00020821,2]
[374574314,1753360266256,-460.0,0.00020821,2]
[374574315,1753360266266,-460.0,0.00020821,2]
[374574316,1753360266276,-460.0,0.00020821,2]
[374574317,1753360266286,-2461.45,0.00020821,2]
[374574318,1753360266295,-460.0,0.00020821,2]
[374574319,1753360266307,-460.0,0.00020821,2]
[374574320,1753360266317,-460.0,0.00020821,2]
[374574321,1753360266327,-460.0,0.00020821,2]
[374574322,1753360266336,-460.0,0.00020821,2]
[374574323,1753360266346,-460.0,0.00020821,2]
[374574324,1753360266355,-597.66,0.00020821,2]
[374574325,1753360266365,-479.16,0.00020821,2]
[374574326,1753360266374,-460.0,0.00020821,2]
[374574327,1753360266383,-2629.06,0.00020821,2]
[374574328,1753360266393,-460.0,0.00020821,2]
[374574329,1753360266403,-602.97,0.00020821,2]
[374574330,1753360266413,-604.51,0.00020821,2]
[374574331,1753360266423,-460.0,0.00020821,2]
[374574332,1753360266432,-1353.06,0.00020821,2]
[374574333,1753360266441,-460.0,0.00020821,2]
[374574334,1753360266452,-460.0,0.00020821,2]
[374574335,1753360266461,-460.0,0.00020821,2]
[374574336,1753360266470,-460.0,0.00020821,2]
[374574337,1753360266479,-555.83,0.00020821,2]
[374574338,1753360266490,-460.0,0.00020821,2]
[374574339,1753360266500,-460.0,0.00020821,2]
[374574340,1753360266510,-2933.32,0.00020821,2]
[374574341,1753360266520,-460.0,0.00020821,2]
[374574342,1753360266529,-616.01,0.00020821,2]
[374574343,1753360266538,-460.0,0.00020821,2]
[374574344,1753360266548,-609.01,0.00020821,2]
[374574345,1753360266557,-460.21,0.00020821,2]
[374574346,1753360266661,-460.0,0.00020821,2]
[374574347,1753360266671,-460.0,0.00020821,2]
[374574348,1753360266681,-1496.43,0.00020821,2]
[374574349,1753360266691,-1261.1,0.00020821,2]
[374574350,1753360266701,-460.0,0.00020821,2]
[374574351,1753360266712,-151.0,0.00020821,2]
[374574352,1753360266722,-653.26,0.00020821,2]
[374574353,1753360266732,-670.55,0.00020821,2]
[374574354,1753360266741,-467.43991015,0.00020821,2]
[374574355,1753360266751,-151.0,0.00020821,2]
[374574356,1753360266760,-5786.17,0.00020821,2]
[374574357,1753360266770,-596.9,0.00020821,2]
[374574358,1753360266780,-460.0,0.00020821,2]
[374574359,1753360266790,-604.88,0.00020821,2]
[374574360,1753360266800,-460.0,0.00020821,2]
[374574361,1753360266809,-1911.8,0.00020821,2]
[374574362,1753360266819,-460.0,0.00020821,2]
[374574363,1753360266828,-460.0,0.00020821,2]
[374574364,1753360266837,-460.0,0.00020821,2]
[374574365,1753360266846,-744.46,0.00020821,2]
[374574366,1753360266856,-467.08440281,0.00020821,2]
[374574367,1753360266866,-460.0,0.00020821,2]
[374574368,1753360266876,-670.07,0.00020821,2]
[374574369,1753360266886,-460.0,0.00020821,2]
[374574370,1753360266896,-460.0,0.00020821,2]
[374574371,1753360266907,-1002.82,0.00020821,2]
[374574372,1753360266917,-531.78,0.00020821,2]
[374574373,1753360266926,-498.33,0.00020821,2]
[374574374,1753360266936,-460.0,0.00020821,2]
[374574375,1753360266945,-460.0,0.00020821,2]
[374574376,1753360266955,-460.0,0.00020821,2]
[374574377,1753360266965,-460.0,0.00020821,2]
[374574378,1753360266975,-460.0,0.00020821,2]
[374574379,1753360266984,-1757.41,0.00020821,2]
[374574380,1753360266994,-754.62,0.00020821,2]
[374574381,1753360267003,-529.83,0.00020821,2]